bitfinex/quotes_BTCUSD_20251124
["timestamp","ask_amount","ask_price","bid_price","bid_amount"]
[1763967650030,0.33019768,87053.0,87052.0,0.00312484]
[1763967652204,0.37211768,87053.0,87052.0,0.00312484]
[1763967652730,2.39609256,87053.0,87052.0,0.00312484]
[1763967652936,2.44819505,87053.0,87052.0,0.00312484]
[1763967653140,2.49780471,87053.0,87052.0,0.00212484]
[1763967653351,2.49780471,87053.0,87052.0,0.00112484]
[1763967654681,2.44819505,87053.0,87052.0,0.00112484]
[1763967657306,2.11799737,87053.0,87052.0,0.00112484]
[1763967659281,2.44099737,87053.0,87052.0,0.00112484]
[1763967660458,2.68074246,87053.0,87052.0,0.00112484]
[1763967660649,2.68675231,87053.0,87052.0,0.00112484]
[1763967661021,2.48701557,87053.0,87052.0,0.00112484]
[1763967661224,2.53397226,87053.0,87052.0,0.00112484]
[1763967661594,2.30422717,87053.0,87052.0,0.00112484]
[1763967661996,2.53497226,87053.0,87052.0,0.00112484]
[1763967662478,2.53397226,87053.0,87052.0,0.00021484]
[1763967662653,2.32832904,87053.0,87052.0,0.00021484]
[1763967662804,2.33132904,87053.0,87052.0,0.00021484]
[1763967663005,2.34085904,87053.0,87052.0,0.00021484]
[1763967663238,2.35375904,87053.0,87052.0,0.00021484]
[1763967663445,2.35475904,87053.0,87052.0,0.00021484]
[1763967663788,2.12501395,87053.0,87052.0,0.00021484]
[1763967663989,2.35475904,87053.0,87052.0,0.00021484]
[1763967664797,2.60195904,87053.0,87052.0,0.00021484]
[1763967665957,2.71718035,87053.0,87052.0,0.00021484]
[1763967666412,2.60195904,87053.0,87052.0,0.00021484]
[1763967666822,0.37510249,87037.0,87030.0,0.0002]
[1763967667017,2.10409617,87031.0,87030.0,0.00059214]
[1763967667889,2.11562617,87031.0,87030.0,0.00059214]
[1763967670208,2.10409617,87031.0,87030.0,0.00059214]
[1763967670483,2.11562617,87031.0,87030.0,0.00059214]
[1763967670667,2.20377838,87031.0,87030.0,0.00059214]
[1763967672348,2.37110218,87031.0,87030.0,0.00059214]
[1763967672534,2.61090535,87031.0,87030.0,0.00059214]
[1763967672738,2.63559322,87031.0,87030.0,0.00059214]
[1763967673473,2.52037191,87031.0,87030.0,0.00059214]
[1763967674493,0.37510249,87024.0,87010.0,0.0002]
[1763967674693,0.45511125,87011.0,87010.0,0.0002]
[1763967675091,0.46664125,87011.0,87010.0,0.0002]
[1763967675403,0.33453,87011.0,87010.0,0.0002]
[1763967675741,0.323,87011.0,87010.0,0.01706]
[1763967676369,0.323,87011.0,87010.0,0.0012]
[1763967676788,0.323,87011.0,87010.0,0.04417]
[1763967677408,0.323,87011.0,87010.0,0.04517]
[1763967677591,0.323,87011.0,87010.0,0.01906]
[1763967677789,0.33453,87011.0,87010.0,0.0022]
[1763967678030,0.33453,87011.0,87010.0,0.00352279]
[1763967678562,0.323,87011.0,87010.0,0.00352279]
[1763967681485,0.323,87011.0,87010.0,0.02038279]
[1763967682170,0.323,87011.0,87010.0,0.00352279]
[1763967682566,0.323,87011.0,87010.0,0.04649279]
[1763967682913,0.323,87011.0,87010.0,0.00352279]
[1763967683124,0.33453,87011.0,87010.0,0.00352279]
[1763967683538,2.39816249,87011.0,87010.0,0.00352279]
[1763967683946,2.39816249,87011.0,87010.0,0.00252279]
[1763967683947,2.24672321,87011.0,87010.0,0.00252279]
[1763967684159,2.24672321,87011.0,87010.0,0.00152279]
[1763967685390,2.29633287,87011.0,87010.0,0.00152279]
[1763967686428,2.52618886,87011.0,87010.0,0.00152279]
[1763967687102,2.52818886,87011.0,87010.0,0.00152279]
[1763967687536,2.53176858,87011.0,87010.0,0.00152279]
[1763967687924,2.56712496,87011.0,87010.0,0.00152279]
[1763967688411,2.56712297,87011.0,87010.0,0.00152279]
[1763967688622,2.56712297,87011.0,87000.0,9.96563939]
[1763967688852,2.53393151,87001.0,87000.0,9.96563939]
[1763967689205,2.49585185,87001.0,87000.0,9.96563939]
[1763967689968,2.54646151,87001.0,87000.0,9.96563939]
[1763967690376,2.49685185,87001.0,87000.0,9.96563939]
[1763967690589,2.49785185,87001.0,87000.0,9.96563939]
[1763967692007,2.29096972,87001.0,87000.0,9.96563939]
[1763967692203,2.29320972,87001.0,87000.0,9.96563939]
[1763967692815,2.38002837,87001.0,87000.0,9.96563939]
[1763967693219,2.42963803,87001.0,87000.0,9.96563939]
[1763967693416,2.38002837,87001.0,87000.0,9.96563939]
[1763967694269,2.66201327,87001.0,87000.0,9.96563939]
[1763967694507,2.48775406,87001.0,87000.0,9.96563939]
[1763967694747,2.48775406,87001.0,87000.0,9.96595445]
[1763967694883,2.4381444,87001.0,87000.0,9.96595445]
[1763967695071,2.48775406,87001.0,87000.0,9.96595445]
[1763967695497,2.4381444,87001.0,87000.0,9.96595445]
[1763967697350,2.47272591,87001.0,87000.0,9.96595445]
[1763967698295,2.75221798,87001.0,87000.0,9.96595445]
[1763967698814,2.52233557,87001.0,87000.0,9.96595445]
[1763967701648,2.40909342,87001.0,87000.0,9.96595445]
[1763967701824,2.09707219,87001.0,87000.0,9.96595445]
[1763967702090,2.42231219,87001.0,87000.0,9.96595445]
[1763967705645,2.70429709,87001.0,87000.0,9.96595445]
[1763967705771,2.75390675,87001.0,87000.0,9.96595445]
[1763967706215,2.77853391,87001.0,87000.0,9.96595445]
[1763967708021,2.9139113,87001.0,87000.0,9.89682047]
[1763967708233,2.97266022,87001.0,87000.0,9.86225348]
[1763967708394,2.99184563,87001.0,87000.0,9.82768649]
[1763967708591,2.99184563,87001.0,87000.0,9.7931195]
[1763967708834,2.94184563,87001.0,87000.0,9.7585429]
[1763967708997,2.94084563,87001.0,87000.0,9.7239663]
[1763967709191,3.05606563,87001.0,87000.0,9.6893897]
[1763967709393,2.97024698,87001.0,87000.0,9.6548131]
[1763967709841,2.96924698,87001.0,87000.0,9.6548131]
[1763967710072,2.96665943,87001.0,87000.0,9.6548131]
[1763967710423,2.85143812,87001.0,87000.0,9.6548131]
[1763967711348,2.90502612,87001.0,87000.0,9.6548131]
[1763967712150,2.85502612,87001.0,87000.0,9.6548131]
[1763967712386,2.89027991,87001.0,87000.0,9.6548131]
[1763967712787,2.6603975,87001.0,87000.0,9.6548131]
[1763967712967,2.85809092,87001.0,87000.0,9.6548131]
[1763967713157,2.91747804,87001.0,87000.0,9.6548131]
[1763967714363,3.01589781,87001.0,87000.0,9.6548131]
[1763967714629,2.88669191,87001.0,87000.0,9.6548131]
[1763967715383,2.85809092,87001.0,87000.0,9.6548131]
[1763967715810,2.88332473,87001.0,87000.0,9.6548131]
[1763967716209,2.91411086,87001.0,87000.0,9.6548131]
[1763967716407,2.88887705,87001.0,87000.0,9.6548131]
[1763967716584,2.85809092,87001.0,87000.0,9.6548131]
[1763967717090,2.97331223,87001.0,87000.0,9.6548131]
[1763967717899,3.00409836,87001.0,87000.0,9.6548131]
[1763967718514,2.97331223,87001.0,87000.0,9.6548131]
[1763967719114,2.99854604,87001.0,87000.0,9.6548131]
[1763967719313,2.89916187,87001.0,87000.0,9.6548131]
[1763967719523,2.85809092,87001.0,87000.0,9.6548131]
[1763967720819,2.75430851,87001.0,87000.0,9.6548131]
[1763967721140,2.98419092,87001.0,87000.0,9.6548131]
[1763967722489,2.75430851,87001.0,87000.0,9.6548131]
[1763967722791,3.01579191,87001.0,87000.0,9.6548131]
[1763967722990,2.98419092,87001.0,87000.0,9.6548131]
[1763967723490,2.75430851,87001.0,87000.0,9.6548131]
[1763967724073,3.09941223,87001.0,87000.0,9.6548131]
[1763967724268,2.81116267,87001.0,87000.0,9.6548131]
[1763967724451,2.81119469,87001.0,87000.0,9.6548131]
[1763967726496,2.83685137,87001.0,87000.0,9.6548131]
[1763967728369,2.95795137,87001.0,87000.0,9.6548131]
[1763967728509,3.00795137,87001.0,87000.0,9.6548131]
[1763967728723,3.12317268,87001.0,87000.0,9.6548131]
[1763967729069,3.12676108,87001.0,87000.0,9.6548131]
[1763967729473,3.12676108,87001.0,87000.0,9.62319591]
[1763967730267,3.12676108,87001.0,87000.0,9.56658734]
[1763967730764,3.12676108,87001.0,87000.0,9.31938734]
[1763967731156,3.12576108,87001.0,87000.0,9.31902863]
[1763967731467,3.1021044,87001.0,87000.0,9.29337195]
[1763967731614,2.98888309,87001.0,87000.0,9.29337195]
[1763967733126,2.8867806,87001.0,87000.0,9.29337195]
[1763967733489,2.93888309,87001.0,87000.0,9.29337195]
[1763967734227,2.8837806,87001.0,87000.0,9.29337195]
[1763967734427,2.99341351,87001.0,87000.0,9.29337195]
[1763967734607,3.098516,87001.0,87000.0,9.29337195]
[1763967734807,3.048516,87001.0,87000.0,9.29337195]
[1763967735807,2.93329469,87001.0,87000.0,9.29337195]
[1763967738349,2.28300979,87001.0,87000.0,9.29337195]
[1763967738693,2.56499469,87001.0,87000.0,9.29337195]
[1763967739118,2.56399469,87001.0,87000.0,9.29337195]
[1763967739322,2.55330616,87001.0,87000.0,9.29337195]
[1763967739458,2.32442375,87001.0,87000.0,9.29337195]
[1763967739906,2.55230616,87001.0,87000.0,9.29337195]
[1763967740110,2.75022281,87001.0,87000.0,9.29337195]
[1763967740321,2.79591091,87001.0,87000.0,9.29337195]
[1763967740516,2.705668,87001.0,87000.0,9.29337195]
[1763967740722,2.67829465,87001.0,87000.0,9.29337195]
[1763967740941,2.67729465,87001.0,87000.0,9.29337195]
[1763967741176,2.67629465,87001.0,87000.0,9.29337195]
[1763967741333,2.67829465,87001.0,87000.0,9.29337195]
[1763967741735,2.67833322,87001.0,87000.0,9.29337195]
[1763967742689,2.74008491,87001.0,87000.0,9.29337195]
[1763967743232,2.79355453,87001.0,87000.0,9.29337195]
[1763967743460,2.67833322,87001.0,87000.0,9.29337195]
[1763967745041,2.74008491,87001.0,87000.0,9.29337195]
[1763967749369,2.76831332,87001.0,87000.0,9.29337195]
[1763967749565,2.75556163,87001.0,87000.0,9.29337195]
[1763967749982,2.75656163,87001.0,87000.0,9.29337195]
[1763967750368,2.87078294,87001.0,87000.0,9.29337195]
[1763967750578,2.82078294,87001.0,87000.0,9.29337195]
[1763967750777,2.81978294,87001.0,87000.0,9.29337195]
[1763967750956,3.06798294,87001.0,87000.0,9.29337195]
[1763967751184,3.06998294,87001.0,87000.0,9.29337195]
[1763967751398,3.07639445,87001.0,87000.0,9.23111812]
[1763967752426,3.08711403,87001.0,87000.0,9.23111812]
[1763967754158,3.08711403,87001.0,87000.0,5.95247812]
[1763967754159,2.50497572,87001.0,87000.0,5.95247812]
[1763967754365,2.50497572,87001.0,87000.0,5.34647812]
[1763967754366,2.46380428,87001.0,87000.0,5.34647812]
[1763967754791,2.4573928,87001.0,87000.0,5.34647812]
[1763967755049,2.46690887,87001.0,87000.0,5.34647812]
[1763967755889,2.47395488,87001.0,87000.0,4.73830199]
[1763967756046,2.47395488,87001.0,87000.0,4.64481869]
[1763967756247,2.47395488,87001.0,87000.0,3.15447497]
[1763967756470,2.47395488,87001.0,87000.0,1.90860601]
[1763967756646,2.47395488,87001.0,87000.0,1.70902867]
[1763967756830,2.47295488,87001.0,87000.0,1.70902867]
[1763967757035,2.47095488,87001.0,87000.0,1.70902867]
[1763967757235,2.47635932,87001.0,87000.0,1.70902867]
[1763967757540,2.47635932,87001.0,86986.0,0.00601261]
[1763967757734,2.47635932,87001.0,86932.0,0.0001]
[1763967757735,3.6465433,86961.0,86932.0,0.01477]
[1763967757914,3.45547248,86961.0,86933.0,0.02917]
[1763967758154,0.01150086,86950.0,86932.0,0.0001]
[1763967758350,1.318143,86933.0,86932.0,0.0001]
[1763967758910,1.31853442,86933.0,86932.0,0.0001]
[1763967759512,1.32203442,86933.0,86932.0,0.0001]
[1763967759690,1.32553442,86933.0,86932.0,0.0001]
[1763967760113,1.31853442,86933.0,86932.0,0.0001]
[1763967760679,1.32203442,86933.0,86932.0,0.0001]
[1763967761082,1.32604624,86932.0,86920.0,0.0002]
[1763967761322,3.328043,86921.0,86920.0,0.0002]
[1763967761751,3.331543,86921.0,86920.0,0.0002]
[1763967761889,3.34360817,86921.0,86920.0,0.0002]
[1763967762393,3.51115169,86921.0,86920.0,0.0012]
[1763967762649,3.39593038,86921.0,86920.0,0.0002]
[1763967762846,3.34382789,86921.0,86920.0,0.0002]
[1763967763142,3.33382789,86921.0,86920.0,0.0002]
[1763967763342,3.33032789,86921.0,86920.0,0.0002]
[1763967764732,3.33382789,86921.0,86920.0,0.0002]
[1763967765334,3.13407977,86921.0,86920.0,0.0002]
[1763967765532,3.33032789,86921.0,86920.0,0.0002]
[1763967765974,3.54726135,86921.0,86920.0,0.0002]
[1763967766191,3.77735534,86921.0,86920.0,0.0002]
[1763967766493,3.66572259,86921.0,86920.0,0.0002]
[1763967768365,3.66672259,86921.0,86920.0,0.0002]
[1763967768561,3.4366286,86921.0,86920.0,0.0002]
[1763967768762,3.4366286,86921.0,86920.0,0.00272295]
[1763967769118,3.4376286,86921.0,86920.0,0.00272295]
[1763967769652,3.55284991,86921.0,86920.0,0.00272295]
[1763967770263,3.4376286,86921.0,86920.0,0.00272295]
[1763967771226,3.66772259,86921.0,86920.0,0.00272295]
[1763967772014,3.78912259,86921.0,86920.0,0.00272295]
[1763967772347,3.4376286,86921.0,86920.0,0.00272295]
[1763967773336,3.33844605,86921.0,86920.0,0.00272295]
[1763967773499,3.56854004,86921.0,86920.0,0.00272295]
[1763967774090,3.56754004,86921.0,86920.0,0.00272295]
[1763967774719,3.56654004,86921.0,86920.0,0.00272295]
[1763967775088,3.56754004,86921.0,86920.0,0.00272295]
[1763967775310,3.56854004,86921.0,86920.0,0.00272295]
[1763967775770,3.61915671,86921.0,86920.0,0.00272295]
[1763967775890,3.74055671,86921.0,86920.0,0.00272295]
[1763967776090,3.75180495,86921.0,86920.0,0.00272295]
[1763967776346,3.86702626,86921.0,86920.0,0.00272295]
[1763967776848,3.47490011,86911.0,86873.0,0.03278]
[1763967777013,3.47490011,86911.0,86882.0,0.03278]
[1763967777014,3.35569965,86911.0,86882.0,0.03278]
[1763967777353,3.59349028,86911.0,86873.0,0.03278]
[1763967777503,3.59349028,86911.0,86910.0,0.00051555]
[1763967777725,3.70871159,86911.0,86910.0,0.00051555]
[1763967777949,3.62627028,86911.0,86910.0,0.00051555]
[1763967778980,0.33450708,86903.0,86873.0,0.03278]
[1763967779221,3.31589097,86901.0,86873.0,0.03278]
[1763967779570,3.46488575,86901.0,86873.0,0.03278]
[1763967779810,3.43637346,86901.0,86873.0,0.03278]
[1763967780214,3.43676464,86901.0,86873.0,0.03278]
[1763967780424,3.66691158,86901.0,86873.0,0.03278]
[1763967780578,3.67838977,86901.0,86861.0,0.09768936]
[1763967780764,3.70690206,86901.0,86863.0,0.03278]
[1763967780960,3.70690206,86901.0,86864.0,0.06504]
[1763967781160,3.82830206,86901.0,86864.0,0.06504]
[1763967781612,3.82930206,86901.0,86864.0,0.06504]
[1763967781777,3.94452337,86901.0,86864.0,0.06504]
[1763967781991,3.82930206,86901.0,86864.0,0.06504]
[1763967782187,3.59915512,86901.0,86864.0,0.06504]
[1763967782388,3.57064283,86901.0,86871.0,0.03278]
[1763967782589,3.25984132,86901.0,86882.0,0.03278]
[1763967782810,3.24625275,86901.0,86882.0,0.03278]
[1763967784145,3.29486241,86901.0,86882.0,0.03278]
[1763967784658,3.29486241,86901.0,86873.0,0.06755]
[1763967784809,3.29486241,86901.0,86879.0,0.03177]
[1763967786605,3.13721704,86901.0,86879.0,0.03177]
[1763967787021,3.14787222,86901.0,86900.0,0.0005019]
[1763967788164,3.31519602,86901.0,86900.0,0.0005019]
[1763967788694,3.43012165,86901.0,86900.0,0.0005019]
[1763967788928,3.19997471,86901.0,86900.0,0.0005019]
[1763967789264,3.22457172,86901.0,86900.0,0.0005019]
[1763967790775,3.16557961,86901.0,86900.0,0.0005019]
[1763967790989,3.16457961,86901.0,86900.0,0.0005019]
[1763967791184,3.17249411,86901.0,86900.0,0.0005019]
[1763967792690,0.83059831,86901.0,86900.0,0.1078619]
[1763967792910,1.14294313,86901.0,86900.0,0.0005019]
[1763967793116,0.81994313,86901.0,86900.0,0.0005019]
[1763967793521,1.14294313,86901.0,86900.0,0.0005019]
[1763967794163,1.14294313,86901.0,86900.0,0.0015019]
[1763967795827,1.14294313,86901.0,86900.0,0.1080219]
[1763967796038,1.14294313,86901.0,86900.0,0.0446819]
[1763967796259,1.14294313,86901.0,86900.0,0.0015019]
[1763967796438,1.14294313,86901.0,86900.0,0.0446819]
[1763967796652,1.14294313,86901.0,86900.0,0.1080219]
[1763967797669,1.14294313,86901.0,86900.0,0.0015019]
[1763967798109,1.14294313,86901.0,86900.0,0.0446819]
[1763967798315,0.75294313,86901.0,86900.0,0.1080219]
[1763967798513,0.67440826,86901.0,86900.0,0.1080219]
[1763967798774,0.99740826,86901.0,86900.0,0.1080219]
[1763967799012,0.67440826,86901.0,86900.0,0.1080219]
[1763967799240,0.67440826,86901.0,86900.0,0.1070219]
[1763967799610,0.67440826,86901.0,86900.0,0.1080219]
[1763967799791,0.79912683,86901.0,86900.0,0.1080219]
[1763967799995,0.79912683,86901.0,86900.0,0.1070219]
[1763967800418,0.79912683,86901.0,86900.0,0.0446819]
[1763967800628,0.79568061,86901.0,86900.0,0.1034819]
[1763967800832,0.00358863,86929.0,86900.0,0.1034819]
[1763967800833,0.323,86940.0,86901.0,0.05210249]
[1763967801049,0.323,86938.0,86907.0,0.09768936]
[1763967801251,0.323,86934.0,86921.0,0.09768936]
[1763967802910,0.323,86938.0,86921.0,0.09768936]
[1763967803121,0.06451,86940.0,86921.0,0.09768936]
[1763967803276,0.323,86938.0,86921.0,0.09768936]
[1763967803476,2.0,86941.0,86921.0,0.09768936]
[1763967803677,0.323,86940.0,86921.0,0.09768936]
[1763967803896,0.02537,86942.0,86921.0,0.09768936]
[1763967804379,0.323,86942.0,86921.0,0.09768936]
[1763967805618,0.06451,86952.0,86921.0,0.09768936]
[1763967805619,0.0014,86934.0,86921.0,0.09768936]
[1763967807192,0.0014,86934.0,86921.0,0.09868936]
[1763967807597,0.0014,86934.0,86921.0,0.001]
[1763967807775,0.0014,86934.0,86922.0,0.09768936]
[1763967807986,0.06451,86933.0,86921.0,0.002]
[1763967808406,0.35514,86932.0,86921.0,0.002]
[1763967808743,0.35514,86932.0,86921.0,0.001]
[1763967808947,0.35514,86932.0,86922.0,0.001]
[1763967809351,0.35514,86932.0,86907.0,0.09768936]
[1763967809531,0.03198888,86932.0,86907.0,0.09768936]
[1763967809742,0.323,86929.0,86907.0,0.09768936]
[1763967809919,0.323,86929.0,86908.0,0.02301284]
[1763967810937,0.06451,86928.0,86907.0,0.09768936]
[1763967811600,0.07284,86908.0,86902.0,0.00025248]
[1763967811827,0.0407,86903.0,86902.0,0.00025248]
[1763967811996,2.3637,86903.0,86902.0,0.00025248]
[1763967812197,2.42821,86903.0,86902.0,0.00025248]
[1763967813388,2.42921,86903.0,86902.0,0.00025248]
[1763967814151,2.26325386,86903.0,86902.0,0.00025248]
[1763967814410,2.43314,86903.0,86902.0,0.00025248]
[1763967814614,0.324,86903.0,86902.0,0.00025248]
[1763967814912,0.36863,86903.0,86902.0,0.00025248]
[1763967815256,0.324,86903.0,86902.0,0.00025248]
[1763967815451,0.324,86903.0,86902.0,0.03522248]
[1763967815677,0.323,86903.0,86902.0,0.04227214]
[1763967816301,0.323,86903.0,86902.0,0.00730214]
[1763967816624,0.323,86903.0,86902.0,0.00025248]
[1763967817619,0.323,86903.0,86902.0,0.03522248]
[1763967819347,0.323,86903.0,86902.0,0.07019248]
[1763967820822,0.03114,86915.0,86902.0,0.07019248]
[1763967821055,0.87643677,86920.0,86914.0,0.01749]
[1763967821430,2.0,86931.0,86919.0,0.03497]
[1763967821653,2.0,86931.0,86921.0,0.03497]
[1763967821854,2.0,86929.0,86921.0,0.03497]
[1763967822249,0.03114,86939.0,86928.0,0.03497]
[1763967822449,0.53114,86939.0,86933.0,0.01749]
[1763967822856,0.5,86945.0,86933.0,0.05046]
[1763967823127,0.87643677,86943.0,86933.0,0.05046]
[1763967823297,0.0024,86934.0,86933.0,0.08443]
[1763967823497,0.0024,86934.0,86933.0,0.08454786]
[1763967823699,0.0014,86934.0,86933.0,0.08454786]
[1763967824156,0.73484603,86950.0,86933.0,0.08454786]
[1763967824315,0.87643677,86960.0,86949.0,0.07596]
[1763967824514,0.323,86958.0,86949.0,0.07596]
[1763967824679,0.323,86954.0,86949.0,0.07596]
[1763967825128,2.0,86959.0,86949.0,0.07596]
[1763967825537,0.001,86954.0,86949.0,0.07596]
[1763967825888,0.323,86954.0,86949.0,0.03114]
[1763967826953,2.0,86957.0,86949.0,0.03114]
[1763967827162,0.323,86954.0,86949.0,0.03114]
[1763967829043,2.0,86960.0,86953.0,0.0453]
[1763967829236,0.88436775,86970.0,86959.0,0.0453]
[1763967829440,0.323,86967.0,86960.0,0.0453]
[1763967829643,2.0,86969.0,86960.0,0.0453]
[1763967829876,0.323,86968.0,86960.0,0.0453]
[1763967830081,2.0,86969.0,86949.0,0.03114]
[1763967830082,0.01502452,86969.0,86968.0,0.0453]
[1763967830264,0.87643677,86980.0,86968.0,0.0453]
[1763967830461,0.00063051,86969.0,86968.0,0.10737]
[1763967830727,0.00063051,86969.0,86968.0,0.10748786]
[1763967831155,0.01508537,86969.0,86968.0,0.10748786]
[1763967831484,0.00063051,86969.0,86968.0,0.04541786]
[1763967832142,0.01516633,86969.0,86968.0,0.00011786]
[1763967832343,2.43824174,86969.0,86968.0,0.00011786]
[1763967832519,2.36557051,86969.0,86968.0,0.00011786]
[1763967832701,2.38021085,86969.0,86968.0,0.00011786]
[1763967832892,0.38021085,86969.0,86968.0,0.00011786]
[1763967833312,2.44495085,86969.0,86968.0,0.00011786]
[1763967833532,2.45288221,86969.0,86968.0,0.00011786]
[1763967834686,2.34620221,86969.0,86968.0,0.00011786]
[1763967835225,2.34720221,86969.0,86968.0,0.00011786]
[1763967835428,2.34620221,86969.0,86968.0,0.00011786]
[1763967835631,2.34720221,86969.0,86968.0,0.00011786]
[1763967835831,2.38914221,86969.0,86968.0,0.00011786]
[1763967836075,2.45388221,86969.0,86968.0,0.00011786]
[1763967836270,2.45288221,86969.0,86968.0,0.00011786]
[1763967836472,2.38814221,86969.0,86968.0,0.00011786]
[1763967836651,2.38021085,86969.0,86968.0,0.00011786]
[1763967838569,2.33827085,86969.0,86968.0,0.00011786]
[1763967839529,0.33827085,86969.0,86968.0,0.04541786]
[1763967841005,0.33827085,86969.0,86968.0,0.10717786]
[1763967841818,0.01527085,86969.0,86968.0,0.10717786]
[1763967842376,0.17851919,86979.0,86968.0,0.10717786]
[1763967842581,0.0004,86990.0,86968.0,0.10717786]
[1763967842582,0.87683677,86990.0,86978.0,0.01329]
[1763967842817,2.0,86989.0,86978.0,0.01329]
[1763967842998,0.00031518,86979.0,86978.0,0.07505]
[1763967843420,0.01459107,86979.0,86978.0,0.12035]
[1763967843821,0.01459107,86979.0,86978.0,0.01329]
[1763967846802,0.01459107,86979.0,86978.0,0.11625]
[1763967851285,0.01459107,86979.0,86978.0,0.11725]
[1763967852273,0.01459107,86979.0,86978.0,0.05549]
[1763967852514,0.01459107,86979.0,86978.0,0.11725]
[1763967857335,0.0004,86990.0,86978.0,0.11725]
[1763967857535,0.0004,86990.0,86989.0,0.15445936]
[1763967858640,0.0004,86990.0,86989.0,0.05677]
[1763967859845,0.0004,86990.0,86989.0,0.001]
[1763967860165,0.0004,86990.0,86989.0,0.05677]
[1763967860360,0.0004,86990.0,86989.0,0.023804]
[1763967860690,0.0004,86990.0,86989.0,0.01657]
[1763967861126,0.43138,86990.0,86989.0,0.002]
[1763967861271,0.43138,86990.0,86989.0,0.001]
[1763967861472,0.43138,86990.0,86979.0,0.02299405]
[1763967861473,0.323,86989.0,86979.0,0.02299405]
[1763967862264,0.323,86989.0,86988.0,0.0412]
[1763967862701,0.0004,86990.0,86988.0,0.10296]
[1763967862917,0.0004,86990.0,86978.0,0.01329]
[1763967862918,0.0004,86990.0,86989.0,0.23921077]
[1763967863417,0.00074664,86990.0,86989.0,0.23921077]
[1763967864271,0.00074664,86990.0,86989.0,0.27032185]
[1763967865417,0.00074664,86990.0,86989.0,0.21821936]
[1763967866777,0.00074664,86990.0,86989.0,0.21721936]
[1763967867377,0.00074664,86990.0,86989.0,0.21821936]
[1763967870904,0.00074664,86990.0,86989.0,0.002]
[1763967871024,0.43172664,86990.0,86989.0,0.002]
[1763967871370,0.36759664,86990.0,86989.0,0.002]
[1763967872209,0.36759664,86990.0,86989.0,0.001]
[1763967872610,0.323,86989.0,86977.0,0.01557]
[1763967872767,0.323,86986.0,86977.0,0.01557]
[1763967874282,0.323,86986.0,86985.0,0.01329]
[1763967874484,0.0004,86990.0,86985.0,0.05394]
[1763967874668,0.0004,86990.0,86986.0,0.04065]
[1763967874864,0.0004,86990.0,86977.0,0.01557]
[1763967875272,0.323,86986.0,86977.0,0.01557]
[1763967876123,0.323,86986.0,86985.0,0.04065]
[1763967877266,0.0004,86990.0,86985.0,0.04065]
[1763967877420,0.0004,86990.0,86977.0,0.01557]
[1763967877598,0.323,86989.0,86977.0,0.01557]
[1763967878004,0.00025211,86987.0,86977.0,0.01557]
[1763967878199,0.00025211,86987.0,86978.0,0.02299432]
[1763967878399,0.00025211,86987.0,86986.0,0.04065]
[1763967878827,0.00025211,86987.0,86986.0,0.09765]
[1763967879043,0.00025211,86987.0,86986.0,0.04065]
[1763967879907,0.00025211,86987.0,86978.0,0.07999432]
[1763967880443,0.00025211,86987.0,86978.0,0.02299432]
[1763967880648,0.00025211,86987.0,86977.0,0.01557]
[1763967882050,0.00025211,86987.0,86986.0,0.05394]
[1763967882258,0.00025211,86987.0,86986.0,0.11094]
[1763967882470,0.00025211,86987.0,86986.0,0.05394]
[1763967883441,0.00025211,86987.0,86986.0,0.11094]
[1763967883643,0.00025211,86987.0,86986.0,0.05394]
[1763967883848,0.07281211,86987.0,86977.0,0.01557]
[1763967884758,0.03106211,86987.0,86977.0,0.01557]
[1763967885006,0.00025211,86987.0,86977.0,0.01557]
[1763967885703,0.02890211,86987.0,86977.0,0.01557]
[1763967885878,0.02890211,86987.0,86958.0,0.1464]
[1763967885879,0.05662,86986.0,86967.0,0.07046]
[1763967886044,0.323,86980.0,86967.0,0.01733]
[1763967886246,0.323,86980.0,86971.0,0.09768936]
[1763967886762,0.323,86980.0,86967.0,0.01733]
[1763967886763,0.06754,86972.0,86967.0,0.01733]
[1763967886927,0.06754,86972.0,86955.0,0.01329]
[1763967887126,0.03889,86969.0,86955.0,0.01329]
[1763967887856,0.24899436,86971.0,86955.0,0.01329]
[1763967888057,0.24899436,86971.0,86968.0,0.00111786]
[1763967888259,0.02865,86972.0,86968.0,0.00111786]
[1763967888260,0.03889,86969.0,86968.0,0.00111786]
[1763967888447,0.03889,86969.0,86968.0,0.00011786]
[1763967888645,0.04657327,86969.0,86968.0,0.00011786]
[1763967890026,0.41851,86969.0,86968.0,0.00011786]
[1763967891006,0.41951,86969.0,86968.0,0.00011786]
[1763967891226,0.41851,86969.0,86968.0,0.00011786]
[1763967891436,0.41951,86969.0,86968.0,0.00011786]
[1763967892422,2.27162209,86969.0,86968.0,0.00011786]
[1763967892630,2.23639243,86969.0,86968.0,0.00011786]
[1763967893704,2.23739243,86969.0,86968.0,0.00011786]
[1763967893983,2.23639243,86969.0,86968.0,0.00011786]
[1763967894138,2.23739243,86969.0,86968.0,0.00011786]
[1763967894580,2.29387492,86969.0,86968.0,0.00011786]
[1763967894760,2.30163146,86969.0,86968.0,0.00011786]
[1763967895133,2.53159845,86969.0,86968.0,0.00011786]
[1763967895527,2.30163146,86969.0,86968.0,0.00011786]
[1763967895751,2.08061903,86969.0,86968.0,0.00011786]
[1763967895950,2.31058602,86969.0,86968.0,0.00011786]
[1763967896149,2.34518296,86969.0,86968.0,0.00011786]
[1763967897762,2.66818296,86969.0,86968.0,0.00011786]
[1763967897962,2.66718296,86969.0,86968.0,0.00011786]
[1763967898216,2.43921597,86969.0,86968.0,0.00011786]
[1763967898332,2.66818296,86969.0,86968.0,0.00011786]
[1763967898530,2.66618296,86969.0,86968.0,0.00011786]
[1763967898793,2.66918296,86969.0,86968.0,0.00011786]
[1763967899195,2.66818296,86969.0,86968.0,0.00011786]
[1763967899401,2.66918296,86969.0,86968.0,0.00011786]
[1763967900055,2.66718296,86969.0,86968.0,0.00011786]
[1763967900263,2.66706798,86969.0,86968.0,0.00011786]
[1763967900468,2.66806798,86969.0,86968.0,0.00011786]
[1763967900683,2.66706798,86969.0,86968.0,0.00011786]
[1763967901105,0.323,86954.0,86940.0,0.00171353]
[1763967901249,0.00456,86941.0,86940.0,0.00183137]
[1763967901577,0.323,86944.0,86940.0,0.00183137]
[1763967901774,0.03459694,86955.0,86943.0,0.04053]
[1763967901974,0.59629843,86960.0,86949.0,0.04053]
[1763967901975,2.0,86954.0,86949.0,0.04053]
[1763967902135,2.0,86959.0,86949.0,0.04053]
[1763967902337,2.0,86959.0,86940.0,0.00183137]
[1763967902338,2.0,86959.0,86958.0,0.06984]
[1763967903344,0.323,86959.0,86958.0,0.06984]